Workbook

Sheet Operating in Year 2
A1: SMILES DENTAL PROJECT SAMPLE BUSINESS PLAN TEMPLATE
A3: (Operating in Year 2)
B6: YEAR | E6: YEAR
B7: 1 | E7: 2
B8: (Start-up or Expansion) | E8: (1st year of Operation)
A9: REVENUE:
A10: Number of Patients Per Day | E10: 6 | G10: Consider providing care at before and after care - need to consider set up, break down, school holidays
A11: Number of Clinical Care Days Per Year | E11: 108
A12: Total EncountersA | E12: =E10*E11 -> 648
A13: Medicaid Encounters % | E13: 0.3
A14: Ave. Medicaid Reimbursement RateB | E14: ='Fee-for-service'!E19 -> 282.31
A15: Medicaid Collection Rate % | E15: 1
A16: Estimated Medicaid Revenue | E16: =E12*E13*E14*E15 -> 54881.064
A17: Sliding Fee Scale Encounters % | E17: 0.3
A18: Sliding Fee Scale Rate | E18: 20
A19: Sliding Fee Scale Collection Rate % | E19: 1
A20: Estimated Sliding Fee Scale Revenue | E20: =E12*E17*E18*E19 -> 3888
A21: CHP+ Encounters % | E21: 0.3
A22: CHP+ Encounters RateC | E22: ='Fee-for-service'!G19 -> 0
A23: CHP+ Collection Rate % | E23: 1
A24: Estimated CHP+ Revenue | E24: =E12*E21*E22*E23 -> 0
A25: Private Insurance Encounters % | E25: 0.1
A26: Private Insurance Rate | E26: =E14 -> 282.31
A27: Private Insurance Collection Rate % | E27: 1
A28: Estimated Private Insurance Revenue | E28: =E12*E25*E26*E27 -> 18293.688
A29: Total Revenue | E29: =SUM(E28,E24, E20,E16) -> 77062.752
A30: EXPENSES:
A31: Personnel:
A32: Number of FTE Dentists | E32: 0.1 | G32: consider dentist time in relation to RDH time
A33: Rate FTE Dentists | E33: 150000 | F33: Median = >$140,000
A34: Number of FTE Dental Hygienists | E34: 0.6
A35: Rate FTE Hygienist | E35: 70000 | F35: Range = $50,000 to $70,000 | G35: Pay RDH for 10 hours a day to cover administrative time
A36: Number of FTE Patient Navigator | E36: 1
A37: Rate FTE Patient Navigator | E37: 35000 | F37: Range = $30,000 to $40,000
A38: Number of Intake Specialists | E38: 0.25
A39: Rate of FTE Intake Specialists | E39: 35000
A40: Total Personnel | E40: =(E32*E33)+(E34*E35)+(E36*E37)+(E38*E39) -> 100750
A41: Fringe Benefits
A42: Total Fringe Benefits | E42: =$G$42*E40 -> 24180 | F42: Fringe Benefit Percentage | G42: 0.24
A43: Equipment:
A44: Operatory Equipment: | B44: QTY. | C44: PRICE | D44: TOTAL COST
A45: Portable Dental Unit | B45: 1 | C45: 4470 | D45: =SUM(B45*C45) -> 4470
A46: Cavitron Select SPS Scaler | B46: 1 | C46: 2000 | D46: =SUM(B46*C46) -> 2000
A47: Adult Patient Chair | B47: 1 | C47: 3834 | D47: =SUM(B47*C47) -> 3834
A48: Child Patient Chair | B48: 0 | C48: 3500 | D48: =SUM(C48*B48) -> 0
A49: Portable Drs Stool | B49: 1 | C49: 783 | D49: =SUM(B49*C49) -> 783
A50: Light, LED W/Wheeled Floor Stand | B50: 1 | C50: 1763 | D50: 1763
A51: Electronic Dental Record License | B51: 1 | C51: 5250 | D51: =SUM(B51*C51) -> 5250
A52: PC Laptop | B52: 1 | C52: 1600 | D52: 1600
A53: Printer/Scanner | B53: 1 | C53: 70 | D53: 70
A54: Total Operatory Cost | C54: =SUM(C45:C53) -> 23270 | D54: =SUM(D45:D53) -> 19770
A55: X-Ray & Camera Equipment:
A56: NOMAD Pro2 60kV X-Ray BLK | B56: 1 | C56: 7892 | D56: =SUM(B56*C56) -> 7892
A57: DEXIS Platinum Digital X-ray System includes In Office Training, 1 year DEXcare. Includes sensor, software and accessories | B57: 1 | C57: 14995 | D57: =SUM(B57*C57) -> 14995
A58: DEXcam 4 | B58: 1 | C58: 5995 | D58: =SUM(B58*C58) -> 5995
A59: Lead Apron | B59: 2 | C59: 250 | D59: =B59*C59 -> 500
A60: Total X-Ray & Camera Equipment Cost | D60: =SUM(D56:D58) -> 28882
A61: Sterilization Equipment
A62: M3 UltraFast Auto Sterilizer | B62: 1 | C62: 5299 | D62: =SUM(B62*C62) -> 5299
A63: Ultrasonic Cleaner w/Digital | B63: 1 | C63: 400 | D63: =SUM(B63*C63) -> 400
A64: Ultrasonic Accessory Package | B64: 1 | C64: 126 | D64: =SUM(B64*C64) -> 126
A65: Total Sterilization Equipment Cost | D65: =SUM(D62:D64) -> 5825
A66: Instruments etc.
A67: One-time Instrument PurchaseD | B67: 1 | C67: 3968 | D67: =B67*C67 -> 3968
A68: Total Instruments | D68: =SUM(D67) -> 3968
A69: Total Equipment | D69: =SUM(D68,D65,D60,D54) -> 58445
A70: Supplies
A71: Total SuppliesE | E71: =G71*E12 -> 5184 | F71: Rate Per Encounter | G71: 8
A72: Other Expenses
A73: Operating Costs: Nominal rent, Phone, Internet, server & IT support | E73: =E29*0.1 -> 7706.2752
A74: Administration Costs (Includes Program Management, accounting & billing) | E74: =G74*E12 -> 4984.615385 | F74: Rate Per Encounter | G74: =10000/1300 -> 7.692307692
A75: Local Travel | E75: =G75*0.572 -> 0 | F75: Average Trip Mileage
A76: National Travel | F76: Rate Per FTE Staff Needed
A77: Recruitment of dental staff | E77: =G77*(E32+E34+E36) -> 3400 | F77: Rate Per FTE Staff Needed | G77: 2000
A78: Repairs and maintenance | F78: Rate Per Pieces of Equipment | G78: =1000/3 -> 333.3333333
A79: Postage | E79: =G79*E12 -> 43.78378378 | F79: Rate Per Encounter | G79: =250/3700 -> 0.06756756757
A80: Marketing/Outreach | E80: =G80*E12 -> 700.5405405 | F80: Rate Per Encounter | G80: =4000/3700 -> 1.081081081
A81: Miscellaneous | E81: =G81*E12 -> 61.2972973 | F81: Rate Per Encounter | G81: =350/3700 -> 0.09459459459
A82: Total Other Expenses | E82: =SUM(E73:E81) -> 16896.51221
A84: One Time Capital Cost | D84: =SUM(D69) -> 58445 | E84: 0
A85: Ongoing Costs | D85: 0 | E85: =SUM(E82+E71+E42+E40) -> 147010.5122
A86: Total Expenses | D86: =SUM(,D69) -> 58445 | E86: =SUM(E82,E71,E42,E40) -> 147010.5122
A88: Net Profit/Loss | D88: =D29-D86 -> -58445 | E88: =E29-E86 -> -69947.76021
A90: Cost Per Encounter | E90: =E86/E12 -> 226.8680744
A91: Cost Per Patient | E91: =E90*2.3 -> 521.7965711
A94: ADefined as a face-to-face encounter between a dentist or dental hygienist and a client for the purpose of prevention, assessment, or treatment of a dental problem, including restoration.
A95: BMedicaid reimbursement per encounter, see Fee-for service tab, Cell C7.
A96: CCHP+ Reimbursement per encounter, see Fee-for service tab, Cell D7.
A97: DSee Equipment Explanation tab, Cell B22.
A98: E See Equipment Explanation tab, Cell B24.

Sheet Fee-for-service
A1: CODE | B1: DESCRIPTION | C1: CODE SELECTED (CHECKED=TRUE, UNCHECKED = FALSE) | D1: MEDICAID REIMBURSEMENT (hide) | E1: MEDICAID REIMBURSEMENT | F1: CHP+ REIMBURSEMENT | G1: CHP+ REIMBURSEMENT
B2: Intraoral - complete series of radiographic images | C2: TRUE | D2: 78.75 | E2: =IF(C2=TRUE,D2,IF(C2=FALSE,0)) -> 78.75 | F2: 47.45 | G2: 0
B3: Intraoral - periapical first radiographic image | C3: TRUE | D3: 11.74 | E3: =IF(C3=TRUE,D3,IF(C3=FALSE,0)) -> 11.74 | G3: 0
B4: Intraoral - periapical each additional radiographic image | C4: FALSE | D4: 11.74 | E4: 0 | G4: 0
B5: Bitewings - two radiographic images | C5: TRUE | D5: 19.74 | E5: 19.74 | G5: 0
B6: Bitewings - four radiographic images | C6: FALSE | D6: 27.75 | E6: 0 | G6: 0
B7: Comprehensive oral evaluation | C7: TRUE | D7: 36.83 | E7: =IF(C7=TRUE,D7,IF(C7=FALSE,0)) -> 36.83 | F7: 28.86 | G7: 0
B8: Periodic oral evaluation | C8: FALSE | D8: 21.36 | E8: =IF(C8=TRUE,D8,IF(C8=FALSE,0)) -> 0 | F8: 16.2 | G8: 0
B9: Protection restoration/Interim therapeutic restoration - primary dentition | C9: FALSE | D9: 49.09 | E9: =IF(C9=TRUE,D9*I9,IF(C9=FALSE,0)) -> 0 | F9: 36.52 | G9: 0 | H9: Average percentage of patients needing ITR = | I9: 1
B10: Prophylaxis - adult | C10: FALSE | D10: 39.21 | E10: 0 | F10: 34.14 | G10: 0
B11: Prophylaxis - child | C11: TRUE | D11: 29.2 | E11: =IF(C11=TRUE,D11,IF(C11=FALSE,0)) -> 29.2 | F11: 23.42 | G11: 0
B12: Topical application of fluoride varnish | C12: TRUE | D12: 29.35 | E12: 29.35 | F12: 15.07 | G12: 0
B13: Topical application of fluoride - excluding varnish | C13: TRUE | D13: 10.9 | E13: 10.9 | F13: 0 | G13: 0
B14: Sealant - per tooth | C14: TRUE | D14: 32.9 | E14: =IF(C14=TRUE,(D14*I14),IF(C14=FALSE,0)) -> 65.8 | F14: 18.53 | G14: 0 | H14: Average number of sealants = | I14: 2
E15: 178
B16: Caries risk assessment and documentation, with a finding of low risk | E16: N/A | G16: N/A
B17: Caries risk assessment and documentation, with a finding of moderate risk | E17: N/A | G17: N/A
B18: Caries risk assessment and documentation, with a finding of high risk | E18: N/A | G18: N/A
A19: Total | E19: =SUM(E2:E14) -> 282.31 | G19: =SUM(G2:G14) -> 0

Sheet Equipment Explanation
A1: EQUIPMENT DESCRIPTION | B1: EXPLANATION
A2: GENERAL EQUIPMENT
A3: Portable Dental Unit | B3: Self-contained dental system that contains 2 air handpiece connections, 3-way air/water syringes, high volume evacuator, saliva ejector.
A4: Cavitron Select SPS Scaler | B4: Ultrasonic cleaning device
A5: Adult Patient Chair | B5: Portable patient chair with a scissor base for adult up to 500 lbs.
A6: Portable Drs Stool | B6: Self-explanatory
A7: Light | B7: LED W/Wheeled Floor Stand
A8: Electronic Health Care Software | B8: Self-explanatory
A9: PC Laptop | B9: PC Laptop required for DEXIS software
A10: X-RAY/CAMERA
A11: NOMAD Pro2 60kV X-Ray BLK | B11: X-ray machine
A12: DEXIS Platinum Digital X-ray System includes In Office Training, 1 year DEXcare. Includes sensor, software and accessories | B12: X-ray sensor and software
A13: DEXcam 4 | B13: Intraoral camera
A14: STERILIZATION
A15: M3 UltraFast Auto Sterilizer | B15: Delicate instrument autoclave sterilizer
A16: Ultrasonic Cleaner w/Digital | B16: Sterilizer for all other instruments
A17: Ultrasonic Accessory Package | B17: Self-explanatory
A18: INSTRUMENTS
A19: Instruments | B19: Includes basic exam, preventative, and ITR instruments, such as mouth mirrors, explorers, periodontal probes, prophy angle, spoon excavator, amalgamator (triturator), curing light, cotton forceps, etc.
A20: SUPPLIES
A21: Supplies | B21: Includes basic disposables items for preventative care and infection control, such as floss, disclosing solution, fluoride products and trays, etc. It also includes Glass Ionomer restorative material and conditioner.
